[Event "Late-Titled-Tuesday-Blitz-March-19-2024"]
[Site "Chess.com"]
[Date "2024.03.19"]
[Round "2"]
[White "WilsonPalencia21"]
[Black "KNVB"]
[Result "1-0"]
[WhiteElo "2596"]
[BlackElo "2796"]
[TimeControl "180+1"]
[EndTime "14:18:12 PDT"]
[Termination "WilsonPalencia21 won on time"]

1. d4 {[%clk 0:02:59.7]} 1... e5 {[%clk 0:02:59.2]} 2. dxe5 {[%clk 0:02:56.1]}
2... Nc6 {[%clk 0:02:59.1]} 3. Nf3 {[%clk 0:02:54.6]} 3... Qe7 {[%clk
0:02:59.6]} 4. Bf4 {[%clk 0:02:54]} 4... Qb4+ {[%clk 0:02:59.9]} 5. Bd2 {[%clk
0:02:53.6]} 5... Qxb2 {[%clk 0:03:00.6]} 6. Nc3 {[%clk 0:02:54]} 6... Bb4 {[%clk
0:03:01.3]} 7. Rb1 {[%clk 0:02:46.5]} 7... Qxc3 {[%clk 0:03:01.7]} 8. Bxc3
{[%clk 0:02:45.2]} 8... Bxc3+ {[%clk 0:03:02.6]} 9. Nd2 {[%clk 0:02:45.7]} 9...
Nxe5 {[%clk 0:03:03.3]} 10. Rb3 {[%clk 0:02:43.5]} 10... Ba5 {[%clk 0:03:02]}
11. e3 {[%clk 0:02:42.4]} 11... Nf6 {[%clk 0:03:01.9]} 12. Bd3 {[%clk
0:02:41.2]} 12... O-O {[%clk 0:03:01.9]} 13. O-O {[%clk 0:02:41.2]} 13... d5
{[%clk 0:03:02.5]} 14. h3 {[%clk 0:02:38.2]} 14... Bb6 {[%clk 0:03:00]} 15. Nf3
{[%clk 0:02:35.9]} 15... Nxf3+ {[%clk 0:02:59.9]} 16. Qxf3 {[%clk 0:02:35.7]}
16... Be6 {[%clk 0:02:58.8]} 17. Bf5 {[%clk 0:02:34.9]} 17... Rae8 {[%clk
0:02:56.5]} 18. Rc1 {[%clk 0:02:34.2]} 18... g6 {[%clk 0:02:30.1]} 19. Bxe6
{[%clk 0:02:16.3]} 19... fxe6 {[%clk 0:02:29.8]} 20. Qe2 {[%clk 0:02:16.4]}
20... Ne4 {[%clk 0:02:27.4]} 21. f3 {[%clk 0:02:16]} 21... Nd6 {[%clk
0:02:19.9]} 22. c4 {[%clk 0:02:10]} 22... dxc4 {[%clk 0:02:07.7]} 23. Rxc4
{[%clk 0:02:09.8]} 23... Nxc4 {[%clk 0:01:55]} 24. Qxc4 {[%clk 0:02:08.8]} 24...
Rf5 {[%clk 0:01:55.7]} 25. Kh2 {[%clk 0:02:01.5]} 25... Rd5 {[%clk 0:01:46.4]}
26. Qe4 {[%clk 0:01:57.3]} 26... c6 {[%clk 0:01:40.7]} 27. Rd3 {[%clk
0:01:50.3]} 27... Kf7 {[%clk 0:01:38.8]} 28. h4 {[%clk 0:01:32.9]} 28... Bc7+
{[%clk 0:01:24.9]} 29. Kh3 {[%clk 0:01:32.9]} 29... h5 {[%clk 0:01:25.4]} 30. g4
{[%clk 0:01:26.5]} 30... Red8 {[%clk 0:01:16.5]} 31. Rxd5 {[%clk 0:01:21.1]}
31... Rxd5 {[%clk 0:01:16.6]} 32. g5 {[%clk 0:01:11.4]} 32... Rd2 {[%clk
0:00:56.6]} 33. f4 {[%clk 0:01:11.1]} 33... Rd5 {[%clk 0:00:36.4]} 34. a4 {[%clk
0:01:10.1]} 34... Bb6 {[%clk 0:00:20.6]} 35. Kg3 {[%clk 0:01:05.8]} 35... Bc5
{[%clk 0:00:16.9]} 36. Kf3 {[%clk 0:01:02]} 36... b5 {[%clk 0:00:13.6]} 37. axb5
{[%clk 0:01:01.8]} 37... cxb5 {[%clk 0:00:14.5]} 38. Qb1 {[%clk 0:00:57.9]}
38... Bb6 {[%clk 0:00:07.4]} 39. Qb2 {[%clk 0:00:52.1]} 39... Bd8 {[%clk
0:00:02.3]} 40. Qh8 {[%clk 0:00:47.3]} 40... b4 {[%clk 0:00:02.6]} 41. Qh7+
{[%clk 0:00:46]} 41... Kf8 {[%clk 0:00:03]} 42. Qxg6 {[%clk 0:00:42.8]} 42... b3
{[%clk 0:00:02.3]} 43. Qxe6 {[%clk 0:00:31.5]} 43... Rb5 {[%clk 0:00:02.5]} 44.
Qd7 {[%clk 0:00:25.7]} 44... Be7 {[%clk 0:00:02.3]} 45. Qxb5 {[%clk 0:00:24.7]}
1-0

[Event "Late-Titled-Tuesday-Blitz-March-19-2024"]
[Site "Chess.com"]
[Date "2024.03.19"]
[Round "2"]
[White "AGW2016"]
[Black "Cluke86"]
[Result "1-0"]
[WhiteElo "2544"]
[BlackElo "2314"]
[TimeControl "180+1"]
[EndTime "14:18:13 PDT"]
[Termination "AGW2016 won on time"]

1. d4 {[%clk 0:03:00.9]} 1... d6 {[%clk 0:02:59.6]} 2. Nf3 {[%clk 0:03:00.8]}
2... Nf6 {[%clk 0:02:59.5]} 3. c4 {[%clk 0:02:59.6]} 3... g6 {[%clk 0:02:59]} 4.
Nc3 {[%clk 0:03:00.3]} 4... Bf5 {[%clk 0:02:58.9]} 5. Nh4 {[%clk 0:02:57.3]}
5... Bd7 {[%clk 0:02:56.7]} 6. e4 {[%clk 0:02:57.6]} 6... Bg7 {[%clk 0:02:53.9]}
7. Be2 {[%clk 0:02:57.3]} 7... c5 {[%clk 0:02:51.7]} 8. d5 {[%clk 0:02:56]} 8...
a6 {[%clk 0:02:45]} 9. O-O {[%clk 0:02:56.1]} 9... b5 {[%clk 0:02:42.2]} 10. Bd3
{[%clk 0:02:41.3]} 10... b4 {[%clk 0:02:36.6]} 11. Ne2 {[%clk 0:02:40.4]} 11...
a5 {[%clk 0:02:28.1]} 12. Rb1 {[%clk 0:02:36.5]} 12... a4 {[%clk 0:02:26.7]} 13.
f4 {[%clk 0:02:34.9]} 13... Bg4 {[%clk 0:02:23.9]} 14. h3 {[%clk 0:02:33.6]}
14... Bxe2 {[%clk 0:02:23.4]} 15. Qxe2 {[%clk 0:02:34.5]} 15... Nfd7 {[%clk
0:01:59.1]} 16. Nf3 {[%clk 0:02:33.5]} 16... O-O {[%clk 0:01:55.9]} 17. e5
{[%clk 0:02:32.1]} 17... Qc7 {[%clk 0:01:50.8]} 18. e6 {[%clk 0:02:29.4]} 18...
Nb6 {[%clk 0:01:43.4]} 19. exf7+ {[%clk 0:02:27.8]} 19... Rxf7 {[%clk
0:01:43.2]} 20. Ng5 {[%clk 0:02:28.7]} 20... Bd4+ {[%clk 0:01:34.7]} 21. Kh1
{[%clk 0:02:28]} 21... Rf6 {[%clk 0:01:30.1]} 22. Ne6 {[%clk 0:02:26.9]} 22...
Qd7 {[%clk 0:01:18.8]} 23. f5 {[%clk 0:02:26.6]} 23... Qe8 {[%clk 0:00:56.1]}
24. Bg5 {[%clk 0:02:23.8]} 24... N8d7 {[%clk 0:00:54.2]} 25. Bxf6 {[%clk
0:02:23.6]} 25... exf6 {[%clk 0:00:49.4]} 26. fxg6 {[%clk 0:02:20.2]} 26... hxg6
{[%clk 0:00:49.1]} 27. Nxd4 {[%clk 0:02:03.8]} 27... cxd4 {[%clk 0:00:46.9]} 28.
Qxe8+ {[%clk 0:02:02.7]} 28... Rxe8 {[%clk 0:00:47]} 29. Bxg6 {[%clk 0:02:03.4]}
29... Re2 {[%clk 0:00:46.3]} 30. Rbe1 {[%clk 0:01:52.9]} 30... Rxb2 {[%clk
0:00:37.7]} 31. Re7 {[%clk 0:01:51.1]} 31... Ne5 {[%clk 0:00:21.5]} 32. Rxf6
{[%clk 0:01:49.9]} 32... Nxg6 {[%clk 0:00:19.3]} 33. Rxg6+ {[%clk 0:01:49.5]}
33... Kf8 {[%clk 0:00:19.6]} 34. Rb7 {[%clk 0:01:49.3]} 34... Nxc4 {[%clk
0:00:17.5]} 35. Rg4 {[%clk 0:01:36.5]} 35... d3 {[%clk 0:00:16.1]} 36. Rxc4
{[%clk 0:01:36.7]} 36... Rc2 {[%clk 0:00:13.4]} 37. Rd4 {[%clk 0:01:32.8]} 37...
d2 {[%clk 0:00:11.6]} 38. Kh2 {[%clk 0:01:33.5]} 38... Rb2 {[%clk 0:00:03.8]}
39. Rbxb4 {[%clk 0:01:33.1]} 39... Rxb4 {[%clk 0:00:03.7]} 40. Rxd2 {[%clk
0:01:32.5]} 40... a3 {[%clk 0:00:02.9]} 41. Rd3 {[%clk 0:01:32]} 41... Rb5
{[%clk 0:00:03.3]} 42. Rxa3 {[%clk 0:01:32.2]} 42... Rxd5 {[%clk 0:00:03.9]} 43.
Ra7 {[%clk 0:01:32.8]} 43... Rd2 {[%clk 0:00:03.1]} 44. a4 {[%clk 0:01:33.2]}
44... d5 {[%clk 0:00:03.6]} 45. a5 {[%clk 0:01:33.9]} 45... d4 {[%clk
0:00:04.3]} 46. a6 {[%clk 0:01:34.8]} 46... Ra2 {[%clk 0:00:04.5]} 47. Rd7
{[%clk 0:01:35]} 47... Rxa6 {[%clk 0:00:03.6]} 48. Rxd4 {[%clk 0:01:35.7]} 48...
Rf6 {[%clk 0:00:03.7]} 49. Kg3 {[%clk 0:01:35.7]} 49... Kg7 {[%clk 0:00:04.3]}
50. Rg4+ {[%clk 0:01:36.2]} 50... Kh7 {[%clk 0:00:03.9]} 51. Rh4+ {[%clk
0:01:37.1]} 51... Kg7 {[%clk 0:00:03.8]} 52. Rg4+ {[%clk 0:01:38]} 52... Kh7
{[%clk 0:00:03.8]} 53. h4 {[%clk 0:01:38.9]} 53... Rf8 {[%clk 0:00:02.1]} 54.
Kh3 {[%clk 0:01:39]} 54... Kh6 {[%clk 0:00:02.4]} 55. Ra4 {[%clk 0:01:39.2]}
55... Rf5 {[%clk 0:00:01.9]} 56. g4 {[%clk 0:01:39]} 56... Rf3+ {[%clk
0:00:01.5]} 57. Kg2 {[%clk 0:01:39.7]} 57... Rb3 {[%clk 0:00:01.8]} 58. Ra6+
{[%clk 0:01:39.5]} 58... Kg7 {[%clk 0:00:01.9]} 59. h5 {[%clk 0:01:40.1]} 59...
Rc3 {[%clk 0:00:01]} 60. Kf2 {[%clk 0:01:37.9]} 60... Kh7 {[%clk 0:00:01.9]} 61.
Rf6 {[%clk 0:01:33.6]} 61... Rb3 {[%clk 0:00:02.8]} 62. Rf3 {[%clk 0:01:34]}
62... Rb4 {[%clk 0:00:01.8]} 63. Kg3 {[%clk 0:01:34.6]} 63... Rc4 {[%clk
0:00:02.1]} 64. Kh4 {[%clk 0:01:35.1]} 64... Rb4 {[%clk 0:00:02.2]} 65. Ra3
{[%clk 0:01:34]} 65... Rc4 {[%clk 0:00:02.1]} 66. Ra5 {[%clk 0:01:33.8]} 66...
Kg7 {[%clk 0:00:01.7]} 67. Kg5 {[%clk 0:01:34]} 67... Rc6 {[%clk 0:00:01.9]} 68.
Ra7+ {[%clk 0:01:33.5]} 68... Kh8 {[%clk 0:00:02.2]} 69. h6 {[%clk 0:01:34.1]}
69... Kg8 {[%clk 0:00:02.2]} 70. Kh5 {[%clk 0:01:34.5]} 70... Kh8 {[%clk
0:00:02.5]} 71. g5 {[%clk 0:01:34.9]} 71... Rc5 {[%clk 0:00:02.9]} 72. Rf7
{[%clk 0:01:27.4]} 72... Rb5 {[%clk 0:00:02.5]} 73. Kg6 {[%clk 0:01:27.6]} 73...
Rb6+ {[%clk 0:00:02]} 74. Rf6 {[%clk 0:01:27.7]} 74... Rb8 {[%clk 0:00:01.8]}
75. Ra6 {[%clk 0:01:27]} 75... Rg8+ {[%clk 0:00:01.7]} 76. Kh5 {[%clk
0:01:27.3]} 1-0

[Event "Late-Titled-Tuesday-Blitz-March-19-2024"]
[Site "Chess.com"]
[Date "2024.03.19"]
[Round "2"]
[White "artin10862"]
[Black "TheRigos"]
[Result "0-1"]
[WhiteElo "2933"]
[BlackElo "2558"]
[TimeControl "180+1"]
[EndTime "14:18:20 PDT"]
[Termination "TheRigos won on time"]

1. c4 {[%clk 0:03:00.9]} 1... e6 {[%clk 0:03:00]} 2. Nf3 {[%clk 0:02:55.9]} 2...
d5 {[%clk 0:03:00.9]} 3. g3 {[%clk 0:02:56.1]} 3... Nf6 {[%clk 0:03:01]} 4. Bg2
{[%clk 0:02:54.8]} 4... Be7 {[%clk 0:03:01.6]} 5. O-O {[%clk 0:02:54.2]} 5...
O-O {[%clk 0:03:02.3]} 6. d4 {[%clk 0:02:54.3]} 6... dxc4 {[%clk 0:03:02.8]} 7.
Qc2 {[%clk 0:02:53.8]} 7... a6 {[%clk 0:03:03.4]} 8. Qxc4 {[%clk 0:02:51.5]}
8... b5 {[%clk 0:03:03.5]} 9. Qc2 {[%clk 0:02:52]} 9... Bb7 {[%clk 0:03:04.2]}
10. Bd2 {[%clk 0:02:52.4]} 10... Be4 {[%clk 0:03:04.6]} 11. Qc1 {[%clk
0:02:50.7]} 11... c6 {[%clk 0:03:05.5]} 12. e3 {[%clk 0:02:41.8]} 12... Nbd7
{[%clk 0:02:58.9]} 13. Nc3 {[%clk 0:02:41]} 13... Bg6 {[%clk 0:02:58.3]} 14. Rd1
{[%clk 0:02:28.8]} 14... Rc8 {[%clk 0:02:37.8]} 15. Ne5 {[%clk 0:01:58.7]} 15...
Nxe5 {[%clk 0:02:15.8]} 16. dxe5 {[%clk 0:01:59.6]} 16... Nd7 {[%clk 0:02:07.3]}
17. f4 {[%clk 0:01:59]} 17... Nc5 {[%clk 0:01:37.9]} 18. Be1 {[%clk 0:01:47.4]}
18... Qb6 {[%clk 0:01:37.8]} 19. Bf2 {[%clk 0:01:43.4]} 19... Nd3 {[%clk
0:01:35.3]} 20. Rxd3 {[%clk 0:01:31.4]} 20... Bxd3 {[%clk 0:01:35.4]} 21. e4
{[%clk 0:01:27]} 21... Bc5 {[%clk 0:01:34.1]} 22. Nd1 {[%clk 0:01:26.9]} 22...
Bxf2+ {[%clk 0:01:29.1]} 23. Nxf2 {[%clk 0:01:26.7]} 23... Rfd8 {[%clk
0:01:22.9]} 24. Bf3 {[%clk 0:01:22.4]} 24... c5 {[%clk 0:01:12.1]} 25. Qe3
{[%clk 0:01:21.6]} 25... Rd4 {[%clk 0:00:46]} 26. Rc1 {[%clk 0:00:53.3]} 26...
Rcd8 {[%clk 0:00:42.6]} 27. Kg2 {[%clk 0:00:50.9]} 27... c4 {[%clk 0:00:42]} 28.
Rd1 {[%clk 0:00:47.1]} 28... Qc7 {[%clk 0:00:28.4]} 29. h4 {[%clk 0:00:31.4]}
29... Qd7 {[%clk 0:00:28.6]} 30. Rc1 {[%clk 0:00:25.8]} 30... h6 {[%clk
0:00:25.9]} 31. h5 {[%clk 0:00:23.2]} 31... a5 {[%clk 0:00:26.2]} 32. b3 {[%clk
0:00:18.2]} 32... Qa7 {[%clk 0:00:25]} 33. bxc4 {[%clk 0:00:07.9]} 33... bxc4
{[%clk 0:00:25]} 34. Ng4 {[%clk 0:00:05.6]} 34... R4d7 {[%clk 0:00:23.5]} 35.
Qe1 {[%clk 0:00:05.8]} 35... Rb8 {[%clk 0:00:19.5]} 36. Kh3 {[%clk 0:00:03]}
36... a4 {[%clk 0:00:13.1]} 37. Rd1 {[%clk 0:00:02.5]} 37... a3 {[%clk
0:00:13.4]} 38. Ne3 {[%clk 0:00:01.5]} 38... Rb2 {[%clk 0:00:13.6]} 39. f5
{[%clk 0:00:01.8]} 39... Qd4 {[%clk 0:00:13.5]} 0-1

[Event "Late-Titled-Tuesday-Blitz-March-19-2024"]
[Site "Chess.com"]
[Date "2024.03.19"]
[Round "2"]
[White "AlexeiShirov"]
[Black "semchik73"]
[Result "1-0"]
[WhiteElo "2831"]
[BlackElo "2424"]
[TimeControl "180+1"]
[EndTime "14:18:22 PDT"]
[Termination "AlexeiShirov won by resignation"]

1. e4 {[%clk 0:03:00.9]} 1... Nf6 {[%clk 0:02:59.7]} 2. e5 {[%clk 0:02:59.9]}
2... Nd5 {[%clk 0:03:00]} 3. d4 {[%clk 0:02:59.6]} 3... d6 {[%clk 0:03:00.5]} 4.
c4 {[%clk 0:02:59.2]} 4... Nb6 {[%clk 0:03:00.4]} 5. f4 {[%clk 0:02:58.9]} 5...
dxe5 {[%clk 0:03:00.7]} 6. fxe5 {[%clk 0:02:58.6]} 6... Nc6 {[%clk 0:03:01.4]}
7. Be3 {[%clk 0:02:57.2]} 7... Bf5 {[%clk 0:03:01.9]} 8. Nc3 {[%clk 0:02:56.4]}
8... e6 {[%clk 0:03:02.3]} 9. Nf3 {[%clk 0:02:54.5]} 9... Bg4 {[%clk 0:03:02.5]}
10. Be2 {[%clk 0:02:10.5]} 10... Bxf3 {[%clk 0:02:59.6]} 11. Bxf3 {[%clk
0:02:09.5]} 11... Nxc4 {[%clk 0:02:59.2]} 12. Bf2 {[%clk 0:02:08.2]} 12... Nxb2
{[%clk 0:02:51.5]} 13. Qe2 {[%clk 0:02:03.1]} 13... Nxd4 {[%clk 0:02:46.3]} 14.
Qxb2 {[%clk 0:02:01.2]} 14... Nxf3+ {[%clk 0:02:43.6]} 15. gxf3 {[%clk
0:02:00.2]} 15... Qd3 {[%clk 0:02:34.2]} 16. Qb5+ {[%clk 0:01:30.5]} 16... Qxb5
{[%clk 0:02:33.5]} 17. Nxb5 {[%clk 0:01:30.1]} 17... Bb4+ {[%clk 0:02:33.1]} 18.
Ke2 {[%clk 0:01:29.3]} 18... O-O-O {[%clk 0:02:28.1]} 19. Rad1 {[%clk
0:01:25.9]} 19... a6 {[%clk 0:02:22.3]} 20. Nd4 {[%clk 0:01:24.8]} 20... Rd5
{[%clk 0:02:19.5]} 21. f4 {[%clk 0:01:22.7]} 21... Rhd8 {[%clk 0:02:19.3]} 22.
Nf3 {[%clk 0:01:21.8]} 22... f6 {[%clk 0:02:12.9]} 23. Rxd5 {[%clk 0:01:19.1]}
23... Rxd5 {[%clk 0:02:11.6]} 24. Rc1 {[%clk 0:01:15.3]} 24... fxe5 {[%clk
0:02:01.6]} 25. fxe5 {[%clk 0:01:14.5]} 25... c5 {[%clk 0:01:56.1]} 26. Rc4
{[%clk 0:01:12.2]} 26... b5 {[%clk 0:01:50]} 27. Rh4 {[%clk 0:01:08.6]} 27... h6
{[%clk 0:01:49.5]} 28. Rg4 {[%clk 0:01:08]} 28... g5 {[%clk 0:01:46]} 29. h4
{[%clk 0:01:07.6]} 29... gxh4 {[%clk 0:01:43.6]} 30. Rxh4 {[%clk 0:01:07]} 30...
c4 {[%clk 0:01:44.1]} 31. Rxh6 {[%clk 0:01:06.5]} 31... c3 {[%clk 0:01:40.4]}
32. Rxe6 {[%clk 0:01:05.4]} 32... Kd7 {[%clk 0:01:37.2]} 33. Rxa6 {[%clk
0:01:02.2]} 33... c2 {[%clk 0:01:32.4]} 34. e6+ {[%clk 0:00:59.2]} 34... Ke8
{[%clk 0:01:24.1]} 35. Rc6 {[%clk 0:00:50.3]} 35... Rd6 {[%clk 0:00:58.4]} 36.
Rxc2 {[%clk 0:00:44.7]} 36... Rxe6+ {[%clk 0:00:58.8]} 37. Kd3 {[%clk
0:00:44.5]} 37... Rd6+ {[%clk 0:00:58.4]} 38. Nd4 {[%clk 0:00:44.2]} 38... Kd7
{[%clk 0:00:57]} 39. Ke4 {[%clk 0:00:44]} 39... Rb6 {[%clk 0:00:55.1]} 40. Bg3
{[%clk 0:00:43.6]} 40... Bd6 {[%clk 0:00:51.5]} 41. Bxd6 {[%clk 0:00:42.7]}
41... Kxd6 {[%clk 0:00:52]} 42. Rh2 {[%clk 0:00:40.8]} 42... Kc5 {[%clk
0:00:50.9]} 43. Rb2 {[%clk 0:00:39.9]} 43... Kc4 {[%clk 0:00:50.2]} 44. Rc2+
{[%clk 0:00:39]} 44... Kb4 {[%clk 0:00:49.4]} 45. Kd5 {[%clk 0:00:38.9]} 45...
Ka3 {[%clk 0:00:46.6]} 46. Kc5 {[%clk 0:00:37.9]} 46... Rb8 {[%clk 0:00:47]} 47.
Nc6 {[%clk 0:00:35.2]} 47... Rb7 {[%clk 0:00:39.5]} 48. Rh2 {[%clk 0:00:33]}
48... b4 {[%clk 0:00:36.8]} 49. Nd4 {[%clk 0:00:32.2]} 49... Rc7+ {[%clk
0:00:33.7]} 50. Kb6 {[%clk 0:00:31.3]} 50... Rc4 {[%clk 0:00:31.8]} 51. Rd2
{[%clk 0:00:29.9]} 51... Rc1 {[%clk 0:00:25.2]} 52. Ka5 {[%clk 0:00:28.9]} 52...
Rc5+ {[%clk 0:00:23.2]} 53. Nb5+ {[%clk 0:00:28.3]} 53... Rxb5+ {[%clk
0:00:22.1]} 54. Kxb5 {[%clk 0:00:27.8]} 54... b3 {[%clk 0:00:22.5]} 55. axb3
{[%clk 0:00:27.3]} 55... Kxb3 {[%clk 0:00:23.4]} 56. Rd3+ {[%clk 0:00:27.1]} 1-0

[Event "Late-Titled-Tuesday-Blitz-March-19-2024"]
[Site "Chess.com"]
[Date "2024.03.19"]
[Round "2"]
[White "TanitoluwaAps116"]
[Black "Revan_2002"]
[Result "1-0"]
[WhiteElo "2814"]
[BlackElo "2582"]
[TimeControl "180+1"]
[EndTime "14:18:24 PDT"]
[Termination "TanitoluwaAps116 won by resignation"]

1. e4 {[%clk 0:02:57.1]} 1... e5 {[%clk 0:02:55.8]} 2. Nf3 {[%clk 0:02:52.5]}
2... Nc6 {[%clk 0:02:53.8]} 3. Bc4 {[%clk 0:02:51.8]} 3... Bc5 {[%clk
0:02:52.8]} 4. O-O {[%clk 0:02:51.2]} 4... Nf6 {[%clk 0:02:52.6]} 5. d3 {[%clk
0:02:50.9]} 5... d6 {[%clk 0:02:49.8]} 6. c3 {[%clk 0:02:50.1]} 6... O-O {[%clk
0:02:47]} 7. Bg5 {[%clk 0:02:36.8]} 7... a6 {[%clk 0:02:46.1]} 8. a4 {[%clk
0:02:35.5]} 8... Ba7 {[%clk 0:02:44.9]} 9. Nbd2 {[%clk 0:02:34.1]} 9... Re8
{[%clk 0:02:44.5]} 10. Re1 {[%clk 0:02:33.3]} 10... Be6 {[%clk 0:02:44.1]} 11.
b3 {[%clk 0:02:16.8]} 11... h6 {[%clk 0:02:19.6]} 12. Bh4 {[%clk 0:02:12.6]}
12... Bg4 {[%clk 0:02:14.4]} 13. h3 {[%clk 0:02:06.9]} 13... Bh5 {[%clk
0:01:56.2]} 14. b4 {[%clk 0:01:56.4]} 14... g5 {[%clk 0:01:45.6]} 15. Bg3 {[%clk
0:01:55.8]} 15... Kg7 {[%clk 0:01:44.2]} 16. Qb3 {[%clk 0:01:52.1]} 16... Qd7
{[%clk 0:01:41.8]} 17. Rad1 {[%clk 0:01:28.9]} 17... Bg6 {[%clk 0:01:29.6]} 18.
Nf1 {[%clk 0:01:24.8]} 18... Nd8 {[%clk 0:01:20.3]} 19. d4 {[%clk 0:01:10.6]}
19... exd4 {[%clk 0:01:11.6]} 20. e5 {[%clk 0:01:11.5]} 20... Ne4 {[%clk
0:01:10.9]} 21. Nxd4 {[%clk 0:00:56.7]} 21... Nxg3 {[%clk 0:00:32.9]} 22. Nxg3
{[%clk 0:00:56.1]} 22... Bxd4 {[%clk 0:00:33.5]} 23. cxd4 {[%clk 0:00:47.2]}
23... b5 {[%clk 0:00:33.4]} 24. axb5 {[%clk 0:00:27.5]} 24... axb5 {[%clk
0:00:34.3]} 25. Bd5 {[%clk 0:00:26.8]} 25... c6 {[%clk 0:00:34]} 26. Bf3 {[%clk
0:00:21.4]} 26... d5 {[%clk 0:00:34.1]} 27. Bg4 {[%clk 0:00:20.6]} 27... Ne6
{[%clk 0:00:25.3]} 28. Nf5+ {[%clk 0:00:20.6]} 28... Bxf5 {[%clk 0:00:25]} 29.
Bxf5 {[%clk 0:00:21.1]} 29... Ra4 {[%clk 0:00:24.1]} 30. h4 {[%clk 0:00:18]}
30... Rea8 {[%clk 0:00:22.2]} 31. hxg5 {[%clk 0:00:17.4]} 31... hxg5 {[%clk
0:00:22.8]} 32. Qg3 {[%clk 0:00:15.7]} 32... Qe7 {[%clk 0:00:22.8]} 33. Bc2
{[%clk 0:00:08.9]} 33... Ra3 {[%clk 0:00:22.4]} 34. Qg4 {[%clk 0:00:08.7]} 34...
Rh8 {[%clk 0:00:21.3]} 35. g3 {[%clk 0:00:08.1]} 35... Rc3 {[%clk 0:00:18.7]}
36. Bf5 {[%clk 0:00:07.1]} 36... Rc4 {[%clk 0:00:14.2]} 37. Rd3 {[%clk
0:00:07.1]} 37... Rxb4 {[%clk 0:00:13.7]} 38. Bxe6 {[%clk 0:00:05.5]} 38... fxe6
{[%clk 0:00:11.6]} 39. Rf3 {[%clk 0:00:06.1]} 39... Rf8 {[%clk 0:00:11]} 40. Rf6
{[%clk 0:00:05.1]} 40... Rxf6 {[%clk 0:00:09.3]} 41. exf6+ {[%clk 0:00:06]}
41... Kf7 {[%clk 0:00:09.9]} 42. fxe7 {[%clk 0:00:05.9]} 1-0

[Event "Late-Titled-Tuesday-Blitz-March-19-2024"]
[Site "Chess.com"]
[Date "2024.03.19"]
[Round "2"]
[White "GodzillaChessYoutube"]
[Black "mishanick"]
[Result "1-0"]
[WhiteElo "2699"]
[BlackElo "3114"]
[TimeControl "180+1"]
[EndTime "14:18:27 PDT"]
[Termination "GodzillaChessYoutube won by resignation"]

1. d4 {[%clk 0:03:00.9]} 1... Nf6 {[%clk 0:02:59.5]} 2. Bf4 {[%clk 0:02:59.7]}
2... d5 {[%clk 0:02:59.1]} 3. e3 {[%clk 0:02:59.8]} 3... c5 {[%clk 0:02:59.8]}
4. Nc3 {[%clk 0:02:59.3]} 4... a6 {[%clk 0:02:55.8]} 5. dxc5 {[%clk 0:02:47.5]}
5... e6 {[%clk 0:02:54.6]} 6. Bd6 {[%clk 0:02:46.3]} 6... Bxd6 {[%clk
0:02:51.6]} 7. cxd6 {[%clk 0:02:47.2]} 7... Qxd6 {[%clk 0:02:52.2]} 8. Nf3
{[%clk 0:02:47.3]} 8... Nc6 {[%clk 0:02:51.4]} 9. a3 {[%clk 0:02:47.3]} 9... O-O
{[%clk 0:02:48.7]} 10. Be2 {[%clk 0:02:42.5]} 10... e5 {[%clk 0:02:48.2]} 11.
O-O {[%clk 0:02:42.5]} 11... Bg4 {[%clk 0:02:47.1]} 12. Nd2 {[%clk 0:02:34.4]}
12... Bxe2 {[%clk 0:02:41.7]} 13. Nxe2 {[%clk 0:02:35.3]} 13... Rad8 {[%clk
0:02:41.4]} 14. Ng3 {[%clk 0:02:21.2]} 14... Rfe8 {[%clk 0:02:41.3]} 15. Re1
{[%clk 0:02:20.3]} 15... g6 {[%clk 0:02:41.3]} 16. Qb1 {[%clk 0:02:15.4]} 16...
h5 {[%clk 0:02:41.3]} 17. h3 {[%clk 0:02:14.2]} 17... h4 {[%clk 0:02:36.6]} 18.
Ngf1 {[%clk 0:02:14.3]} 18... e4 {[%clk 0:02:29.5]} 19. Nb3 {[%clk 0:02:09.3]}
19... Re5 {[%clk 0:02:28.6]} 20. Qd1 {[%clk 0:01:50]} 20... Rg5 {[%clk
0:02:28.1]} 21. Kh1 {[%clk 0:01:42.2]} 21... Ne5 {[%clk 0:02:21.3]} 22. Nd4
{[%clk 0:01:38.4]} 22... Kg7 {[%clk 0:02:19]} 23. b3 {[%clk 0:01:31.9]} 23...
Rh8 {[%clk 0:02:14.2]} 24. Nh2 {[%clk 0:01:31.7]} 24... Qc7 {[%clk 0:02:07.9]}
25. a4 {[%clk 0:01:31]} 25... Rc8 {[%clk 0:02:07.4]} 26. Qe2 {[%clk 0:01:29.8]}
26... Qc3 {[%clk 0:02:03]} 27. Red1 {[%clk 0:01:25.2]} 27... Rh5 {[%clk
0:02:02.2]} 28. Qd2 {[%clk 0:01:22.5]} 28... Rhh8 {[%clk 0:02:00.2]} 29. Qxc3
{[%clk 0:01:22.1]} 29... Rxc3 {[%clk 0:02:01.1]} 30. Rd2 {[%clk 0:01:12.5]}
30... Rhc8 {[%clk 0:02:01.4]} 31. Ra2 {[%clk 0:01:04.9]} 31... Nc6 {[%clk
0:01:43]} 32. Nxc6 {[%clk 0:01:04.2]} 32... bxc6 {[%clk 0:01:39.9]} 33. Kg1
{[%clk 0:01:00.7]} 33... c5 {[%clk 0:01:36.8]} 34. Kf1 {[%clk 0:00:58.5]} 34...
c4 {[%clk 0:01:37.1]} 35. bxc4 {[%clk 0:00:58.1]} 35... R8xc4 {[%clk 0:01:35.3]}
36. Ke2 {[%clk 0:00:56.6]} 36... Rb4 {[%clk 0:01:35.9]} 37. Rd1 {[%clk
0:00:53.1]} 37... Rcc4 {[%clk 0:01:31.9]} 38. Rda1 {[%clk 0:00:52.6]} 38... Nd7
{[%clk 0:01:31.5]} 39. Nf1 {[%clk 0:00:49.3]} 39... Nb6 {[%clk 0:01:16.3]} 40.
Nd2 {[%clk 0:00:39.1]} 40... Rc3 {[%clk 0:01:15.3]} 41. a5 {[%clk 0:00:34.6]}
41... Nd7 {[%clk 0:01:03.2]} 42. Nb3 {[%clk 0:00:31.4]} 42... f5 {[%clk
0:00:57.3]} 43. Nd4 {[%clk 0:00:30.1]} 43... Kf6 {[%clk 0:00:52.4]} 44. Ra3
{[%clk 0:00:26.7]} 44... Rcc4 {[%clk 0:00:49]} 45. Rb3 {[%clk 0:00:25.3]} 45...
Nc5 {[%clk 0:00:48.7]} 46. Rxb4 {[%clk 0:00:25.5]} 46... Rxb4 {[%clk 0:00:49.6]}
47. Ra3 {[%clk 0:00:23]} 47... Ke5 {[%clk 0:00:44.5]} 48. Nc6+ {[%clk
0:00:22.4]} 48... Kd6 {[%clk 0:00:44.6]} 49. Nxb4 {[%clk 0:00:23.3]} 49... g5
{[%clk 0:00:43.2]} 50. Rc3 {[%clk 0:00:23.1]} 50... f4 {[%clk 0:00:43.5]} 51.
Rxc5 {[%clk 0:00:21.7]} 51... Kxc5 {[%clk 0:00:44.1]} 52. Nxa6+ {[%clk
0:00:22.4]} 52... Kc4 {[%clk 0:00:45]} 53. Nc7 {[%clk 0:00:22.5]} 53... g4
{[%clk 0:00:43.7]} 54. a6 {[%clk 0:00:20.3]} 54... f3+ {[%clk 0:00:43.3]} 55.
Kf1 {[%clk 0:00:20.4]} 55... d4 {[%clk 0:00:37.5]} 56. a7 {[%clk 0:00:20.3]}
56... d3 {[%clk 0:00:38.1]} 57. cxd3+ {[%clk 0:00:20]} 57... exd3 {[%clk
0:00:38.6]} 58. a8=Q {[%clk 0:00:20.6]} 58... d2 {[%clk 0:00:39.5]} 59. Qd5+
{[%clk 0:00:20.7]} 59... Kc3 {[%clk 0:00:40.2]} 60. hxg4 {[%clk 0:00:19.4]}
60... h3 {[%clk 0:00:40.4]} 61. gxh3 {[%clk 0:00:19.2]} 61... Kc2 {[%clk
0:00:40.8]} 62. Qxf3 {[%clk 0:00:19.1]} 62... Kc1 {[%clk 0:00:40.5]} 63. e4
{[%clk 0:00:18]} 1-0